bitfinex-derivatives/quotes_BNBF0:USTF0_20250315
["timestamp","ask_amount","ask_price","bid_price","bid_amount"]
[1741999540369,0.29469299,591.13,590.13,0.33890837]
[1741999540669,0.31113606,591.12,590.13,0.33890837]
[1741999541674,0.31113606,591.11,590.13,0.33890837]
[1741999541971,0.31113606,591.12,590.13,0.33890837]
[1741999542171,0.31113929,591.11,590.13,0.33890837]
[1741999542568,0.31113929,591.1,590.13,0.33890837]
[1741999542971,0.31113929,591.09,590.13,0.33890837]
[1741999543170,0.31113929,591.12,590.13,0.33890837]
[1741999543370,0.31113929,591.11,590.13,0.33890837]
[1741999543565,0.31113929,591.12,590.13,0.33890837]
[1741999543767,0.31113929,591.11,590.13,0.33890837]
[1741999543968,0.31113929,591.12,590.13,0.33890837]
[1741999544168,0.31113414,591.11,590.13,0.33890837]
[1741999544372,0.31113414,591.12,590.13,0.33890837]
[1741999544570,0.31113414,591.11,590.13,0.33890837]
[1741999544768,0.29469049,591.14,590.13,0.33890837]
[1741999544966,0.31113414,591.13,590.13,0.33890837]
[1741999545973,0.29469049,591.14,590.13,0.33890837]
[1741999546267,0.31113474,591.13,590.13,0.33890837]
[1741999546772,0.31113474,591.13,590.14,0.468]
[1741999546972,6.08559956,598.01,590.15,0.33889689]
[1741999547174,0.64907362,591.71,590.15,0.33889689]
[1741999547473,0.64907933,591.7,590.15,1.17489689]
[1741999547668,0.64908504,591.69,590.15,1.17489689]
[1741999547870,0.64909064,591.68,590.15,1.17489689]
[1741999548068,0.64909635,591.67,590.15,1.17489689]
[1741999548374,0.64910206,591.66,590.15,1.17489689]
[1741999548569,0.64910778,591.65,590.15,1.17489689]
[1741999548769,0.64911349,591.64,590.15,1.17489689]
[1741999548971,0.6491192,591.63,590.15,1.17489689]
[1741999549174,0.64912492,591.62,590.15,1.17489689]
[1741999549373,0.64913063,591.61,590.15,1.17489689]
[1741999549570,0.64913635,591.6,590.15,1.17489689]
[1741999549773,2.59344213,592.2,590.15,1.17489689]
[1741999549774,0.64914206,591.59,590.15,1.17489689]
[1741999549975,0.31107009,591.58,590.15,2.13089689]
[1741999550167,0.31103997,591.57,590.15,2.13089689]
[1741999550372,0.31103997,591.58,590.15,2.13089689]
[1741999550570,0.29459445,591.56,590.16,0.30634637]
[1741999550770,0.31103997,591.55,590.17,0.3388854]
[1741999551075,0.31103997,591.55,590.18,0.30634637]
[1741999551278,0.31103997,591.55,590.19,0.33887392]
[1741999551471,0.31103997,591.55,590.2,0.30634637]
[1741999551671,0.31103997,591.55,590.21,0.33886243]
[1741999552075,0.31103997,591.55,590.22,1.20634637]
[1741999552275,0.31103997,591.55,590.23,0.33885095]
[1741999554676,0.6491348,591.55,590.23,0.33885095]
[1741999554879,0.64914052,591.54,590.23,0.33885095]
[1741999555079,0.64914623,591.53,590.23,0.33885095]
[1741999555280,0.64915195,591.52,590.23,0.33885095]
[1741999555480,0.64915766,591.51,590.24,1.017]
[1741999555680,0.64916338,591.5,590.24,1.017]
[1741999555882,0.6491691,591.49,590.24,1.017]
[1741999556085,0.64917481,591.48,590.24,1.017]
[1741999556278,0.64918053,591.47,590.24,1.017]
[1741999556478,0.64918625,591.46,590.24,1.017]
[1741999556785,0.31103997,591.45,590.24,1.017]
[1741999557085,0.3111057,591.44,590.24,1.017]
[1741999557287,0.3111057,591.45,590.24,1.017]
[1741999561185,0.33814628,591.46,590.24,1.017]
[1741999562582,0.29459445,591.45,590.24,1.017]
[1741999562785,0.33815771,591.44,590.24,1.017]
[1741999562981,0.33815771,591.44,590.25,0.849]
[1741999563182,0.31111663,591.43,590.25,0.849]
[1741999563888,0.31111663,591.42,590.25,0.849]
[1741999564083,0.31111663,591.41,590.25,0.849]
[1741999564388,0.31111663,591.4,590.25,0.849]
[1741999564689,0.31111663,591.39,590.25,0.849]
[1741999564884,0.33815771,591.44,590.25,0.849]
[1741999564885,0.31111663,591.38,590.25,0.849]
[1741999565188,0.29459445,591.45,590.25,0.849]
[1741999565189,0.64931437,591.37,590.25,0.849]
[1741999565487,0.64932009,591.36,590.25,0.849]
[1741999565791,0.31111663,591.35,590.25,0.849]
[1741999565987,0.31111663,591.34,590.25,0.849]
[1741999566188,0.64933725,591.33,590.25,0.849]
[1741999566384,0.64934297,591.32,590.25,0.849]
[1741999566687,0.64934869,591.31,590.25,0.849]
[1741999566884,0.64935441,591.3,590.25,0.849]
[1741999567288,0.64936013,591.29,590.25,0.849]
[1741999567482,0.64936585,591.28,590.25,0.849]
[1741999567683,0.31111663,591.27,590.26,0.79]
[1741999568889,0.2946618,591.26,590.27,0.468]
[1741999569190,0.31111663,591.25,590.27,0.468]
[1741999571484,0.31111663,591.25,590.27,1.308]
[1741999571682,0.29466429,591.24,590.27,1.308]
[1741999571886,0.60578092,591.24,590.27,1.308]
[1741999572089,0.31111663,591.23,590.27,1.308]
[1741999572890,0.31111663,591.23,590.27,2.192]
[1741999573886,0.31111663,591.23,590.27,2.53082799]
[1741999574693,0.31111663,591.23,590.28,0.33882225]
[1741999575594,4.96308112,591.71,590.28,0.33882225]
[1741999575793,2.94980215,591.7,590.28,0.33882225]
[1741999576093,0.64913146,591.69,590.28,1.35882225]
[1741999576293,0.64913718,591.68,590.28,1.35882225]
[1741999576593,0.64914289,591.67,590.28,1.35882225]
[1741999576787,0.33803197,591.66,590.28,1.35882225]
[1741999576987,0.31111663,591.65,590.28,1.35882225]
[1741999577191,0.64916003,591.64,590.28,1.35882225]
[1741999577388,0.64916574,591.63,590.28,1.35882225]
[1741999577591,0.64917146,591.62,590.28,1.35882225]
[1741999577791,0.64917717,591.61,590.28,2.16382225]
[1741999577992,0.31111663,591.6,590.28,2.16382225]
[1741999580687,0.29457076,591.59,590.28,2.16382225]
[1741999580888,0.31111663,591.58,590.28,2.16382225]
[1741999582293,0.29457076,591.59,590.28,2.16382225]
[1741999582496,0.31103995,591.58,590.28,2.16382225]
[1741999583694,0.31103995,591.57,590.28,2.16382225]
[1741999583894,0.31103995,591.56,590.28,2.16382225]
[1741999584093,0.31103995,591.55,590.28,3.20782225]
[1741999584293,0.31103995,591.54,590.28,3.20782225]
[1741999584493,0.31103995,591.6,590.28,3.20782225]
[1741999584694,0.31103995,591.59,590.28,3.20782225]
[1741999584896,0.31103995,591.6,590.28,3.20782225]
[1741999585595,0.33807197,591.59,590.28,3.20782225]
[1741999585789,0.31103995,591.58,590.28,3.20782225]
[1741999585989,0.3380834,591.57,590.28,3.20782225]
[1741999586189,0.31103995,591.56,590.28,3.20782225]
[1741999586394,0.33810055,591.54,590.28,3.20782225]
[1741999586602,0.31103995,591.53,590.28,3.20782225]
[1741999586797,0.33811198,591.52,590.28,3.20782225]
[1741999586999,0.31103995,591.51,590.28,3.20782225]
[1741999587200,0.33812913,591.49,590.28,4.16582225]
[1741999587400,0.31103995,591.48,590.28,4.16582225]
[1741999587594,0.64918051,591.47,590.28,4.16582225]
[1741999587799,0.33814628,591.46,590.28,4.16582225]
[1741999587997,0.31103995,591.45,590.28,4.16582225]
[1741999588198,0.64919766,591.44,590.28,4.16582225]
[1741999588400,0.31103995,591.43,590.28,4.16582225]
[1741999588598,0.31103995,591.42,590.28,4.16582225]
[1741999588800,0.64921482,591.41,590.28,4.16582225]
[1741999589001,0.64922053,591.4,590.28,4.16582225]
[1741999589202,0.64922625,591.39,590.28,4.16582225]
[1741999589404,0.64923197,591.38,590.28,4.16582225]
[1741999589703,0.64923769,591.37,590.28,4.16582225]
[1741999589904,0.64924341,591.36,590.28,4.16582225]
[1741999590097,0.64924913,591.35,590.28,4.16582225]
[1741999590302,0.64925485,591.34,590.28,4.16582225]
[1741999590496,0.64926057,591.33,590.28,4.16582225]
[1741999590703,0.31103995,591.32,590.28,4.16582225]
[1741999593010,0.31103995,591.32,590.28,5.13882225]
[1741999595212,0.33822062,591.33,590.28,5.13882225]
[1741999595413,0.31117683,591.32,590.28,5.13882225]
[1741999597609,0.31117683,591.32,590.28,6.16082225]
[1741999598812,0.29462063,591.31,590.28,6.16082225]
[1741999599013,0.31117683,591.3,590.28,6.16082225]
[1741999601711,0.60580744,591.29,590.28,6.16082225]
[1741999601916,0.31117683,591.28,590.28,6.16082225]
[1741999602111,0.31117683,591.28,590.28,6.62882225]
[1741999603518,0.29463061,591.29,590.28,6.62882225]
[1741999604519,0.33822062,591.33,590.28,6.62882225]
[1741999604827,0.29463809,591.28,590.28,6.62882225]
[1741999606918,0.31109371,591.27,590.28,6.62882225]
[1741999607627,0.31109371,591.32,590.28,6.62882225]
[1741999607821,0.29464433,591.26,590.28,6.62882225]
[1741999609024,0.31109511,591.25,590.28,6.62882225]
[1741999609227,0.29464433,591.26,590.28,6.62882225]
[1741999610426,0.33822062,591.33,590.28,6.62882225]
[1741999610726,0.29463809,591.25,590.28,6.62882225]
[1741999610926,0.33822062,591.33,590.28,6.62882225]
[1741999611127,0.31109378,591.32,590.28,6.62882225]
[1741999613025,0.33822062,591.33,590.28,6.62882225]
[1741999616723,0.29450594,591.32,590.28,6.62882225]
[1741999617324,0.29450594,591.32,590.28,7.65382225]
[1741999619529,0.33822062,591.33,590.28,7.65382225]
[1741999620330,0.3110153,591.32,590.29,0.30621466]
[1741999620533,0.3110153,592.29,590.29,0.30621466]
[1741999620734,0.3110153,592.28,590.29,0.30621466]
[1741999621032,0.3110153,592.27,590.29,0.30621466]
[1741999621235,0.33769523,592.25,590.29,0.30621466]
[1741999621437,0.3110153,592.24,590.29,0.30621466]
[1741999621632,0.33771233,592.22,590.3,0.33881077]
[1741999621836,0.3110153,592.21,590.31,0.30621466]
[1741999622132,0.33772944,592.19,590.32,0.33879929]
[1741999622339,0.3110153,592.18,590.33,0.30621466]
[1741999622538,0.33774655,592.16,590.34,0.33878781]
[1741999622736,0.3110153,592.15,590.35,0.30621466]
[1741999622934,0.33776366,592.13,590.36,0.33877633]
[1741999623337,2.59344213,591.96,590.36,0.33877633]
[1741999623541,0.33787208,591.94,590.36,0.33877633]
[1741999623740,0.31097947,591.93,590.37,1.2]
[1741999623939,0.3378892,591.91,590.38,0.33876486]
[1741999624240,0.31097947,591.9,590.38,0.80576486]
[1741999624540,0.33790633,591.88,590.38,0.80576486]
[1741999624744,0.31097947,591.87,590.39,2.103]
[1741999624940,0.64889722,591.86,590.39,2.103]
[1741999625141,0.64890293,591.85,590.39,2.103]
[1741999625341,0.64890864,591.84,590.39,2.103]
[1741999625537,0.64891434,591.83,590.39,2.103]
[1741999625741,0.64892006,591.82,590.39,2.103]
[1741999625942,0.64892577,591.81,590.39,2.103]
[1741999626239,0.64893148,591.8,590.39,2.103]
[1741999626445,0.64893719,591.79,590.39,2.103]
[1741999626643,0.33796343,591.78,590.39,2.103]
[1741999626839,0.31098125,591.77,590.39,2.103]
[1741999627039,0.6489561,591.76,590.4,1.022]
[1741999627244,0.64896181,591.75,590.4,1.022]
[1741999627443,0.64896752,591.74,590.4,1.022]
[1741999627643,0.29451093,591.83,590.4,1.022]
[1741999627644,0.64897323,591.73,590.4,1.022]
[1741999627841,0.64897895,591.72,590.4,1.022]
[1741999628247,0.31098125,591.71,590.4,1.022]
[1741999628447,0.33800912,591.7,590.4,1.022]
[1741999628646,0.3109816,591.69,590.4,1.022]
[1741999628846,0.33802055,591.68,590.4,1.022]
[1741999629143,0.3109816,591.67,590.4,1.022]
[1741999629549,0.3109816,591.67,590.41,0.33874764]
[1741999630245,0.33802055,591.68,590.41,0.33874764]
[1741999630442,0.31088341,591.67,590.42,0.30613884]
[1741999630646,0.31088341,591.67,590.43,0.33873617]
[1741999630949,0.31088341,591.67,590.44,0.30616525]
[1741999631145,0.31088341,591.67,590.45,0.3387247]
[1741999631645,0.31088341,591.67,590.46,0.30614878]
[1741999631847,0.29447977,591.66,590.47,0.33871322]
[1741999632042,0.31088341,591.65,590.48,0.30614878]
[1741999632247,0.31088341,591.65,590.49,0.33870175]
[1741999632445,0.31088341,591.65,590.5,0.30614878]
[1741999633244,0.31088341,591.65,590.51,0.33869028]
[1741999633543,0.31088341,591.65,590.52,0.30614878]
[1741999633745,0.31088341,591.65,590.53,0.33867881]
[1741999633946,0.31088341,591.65,590.54,0.30614878]
[1741999634145,0.31088341,591.65,590.55,0.33866734]
[1741999634347,0.31088341,591.65,590.56,0.30614878]
[1741999634548,0.31088341,591.65,590.57,0.33865587]
[1741999634749,0.31088341,591.67,590.58,0.30614878]
[1741999635043,0.2944561,591.64,590.59,0.3386444]
[1741999635248,0.31088341,591.63,590.6,0.30614878]
[1741999635547,0.31088341,591.63,590.61,0.33863293]
[1741999635746,0.31088341,591.63,590.62,0.30614878]
[1741999635945,0.31088341,591.63,590.63,0.33862147]
[1741999637842,0.29447105,591.62,590.63,0.33862147]
[1741999638150,0.31088341,591.61,590.63,0.33862147]
[1741999638348,0.29447105,591.62,590.63,0.33862147]
[1741999638743,0.31094368,591.61,590.63,0.33862147]
[1741999639343,0.31094368,591.61,590.64,0.467]
[1741999639746,0.29447105,591.62,590.64,0.467]
[1741999640447,0.31091042,591.61,590.64,0.467]
[1741999640743,0.31091042,591.6,590.64,0.467]
[1741999640941,0.29444863,591.61,590.65,0.33861]
[1741999641550,0.29444863,591.61,590.65,1.51361]
[1741999641747,0.31086169,591.6,590.65,1.51361]
[1741999642142,0.31086169,591.59,590.65,1.51361]
[1741999642347,2.90430382,592.46,590.65,1.51361]
[1741999642543,0.3108338,592.45,590.65,1.51361]
[1741999642742,2.59344213,592.46,590.65,1.51361]
[1741999642743,0.64842072,592.44,590.65,2.88761]
[1741999642944,0.33759832,592.42,590.65,2.88761]
[1741999643149,0.3108338,592.41,590.65,2.88761]
[1741999643344,0.33761542,592.39,590.65,2.88761]
[1741999643547,0.3108338,592.38,590.65,2.88761]
[1741999643850,0.33763252,592.36,590.65,3.69861]
[1741999644046,0.3108338,592.35,590.65,3.69861]
[1741999644249,0.33764962,592.33,590.65,3.69861]
[1741999644451,0.3108338,592.32,590.65,3.69861]
[1741999644646,0.33766672,592.3,590.65,3.69861]
[1741999644849,0.3108338,592.29,590.65,4.76861]
[1741999645049,0.33768382,592.27,590.65,4.76861]
[1741999645245,0.3108338,592.26,590.65,4.76861]
[1741999645451,0.33770093,592.24,590.65,4.76861]
[1741999645651,0.3108338,592.23,590.65,4.76861]
[1741999645851,0.33771803,592.21,590.65,4.76861]
[1741999646051,0.3108338,592.2,590.65,4.76861]
[1741999646251,0.33773514,592.18,590.65,4.76861]
[1741999646655,0.3108338,592.17,590.65,4.76861]
[1741999646855,0.33775225,592.15,590.65,4.76861]
[1741999647249,0.31088196,592.14,590.65,4.76861]
[1741999647450,0.33776937,592.12,590.65,4.76861]
[1741999647655,0.31088196,592.11,590.65,4.76861]
[1741999647955,0.33778648,592.09,590.65,4.76861]
[1741999648154,0.31088196,592.08,590.65,4.76861]
[1741999648355,0.3378036,592.06,590.65,4.76861]
[1741999648555,0.31088196,592.05,590.65,4.76861]
[1741999648757,0.33781501,592.04,590.65,4.76861]
[1741999648956,0.31088196,592.03,590.65,4.76861]
[1741999649157,0.64871223,592.02,590.65,4.76861]
[1741999649356,0.64871794,592.01,590.65,4.76861]
[1741999649652,0.64872364,592.0,590.65,4.76861]
[1741999649956,0.64872935,591.99,590.65,4.76861]
[1741999650157,0.64873506,591.98,590.65,4.76861]
[1741999650355,0.64874076,591.97,590.65,4.76861]
[1741999650656,0.64874647,591.96,590.65,4.76861]
[1741999650849,0.64875218,591.95,590.65,4.76861]
[1741999651050,0.64875789,591.94,590.65,4.76861]
[1741999651253,0.31088581,591.93,590.65,4.76861]
[1741999651857,0.33788349,591.92,590.65,4.76861]
[1741999652057,0.31088581,591.91,590.65,4.76861]
[1741999652259,0.33789491,591.9,590.65,4.76861]
[1741999652454,0.31088581,591.89,590.65,4.76861]
[1741999652857,0.33790633,591.88,590.65,4.76861]
[1741999653052,0.31088581,591.87,590.65,4.76861]
[1741999653453,0.31088581,591.87,590.65,5.69061]
[1741999655761,0.29442372,591.86,590.65,5.69061]
[1741999655961,0.31088581,591.85,590.65,5.69061]
[1741999656665,0.3108953,591.84,590.65,6.52661]
[1741999656867,0.3108953,591.85,590.65,6.52661]
[1741999657067,0.3108953,591.84,590.65,6.52661]
[1741999657266,0.29442372,591.86,590.65,6.52661]
[1741999657267,0.3108953,591.83,590.65,6.52661]
[1741999657467,0.3108953,591.85,590.65,6.52661]
[1741999657668,0.3108953,591.84,590.65,6.52661]
[1741999657968,0.3108953,591.83,590.65,6.52661]
[1741999658167,0.3108953,591.85,590.65,6.52661]
[1741999658369,0.29442372,591.86,590.65,6.52661]
[1741999658370,0.3108953,591.84,590.65,6.52661]
[1741999658668,0.3108953,591.83,590.65,6.52661]
[1741999658860,0.3108953,591.87,590.65,6.52661]
[1741999659061,0.3108953,591.86,590.65,6.52661]
[1741999659266,0.29442372,591.82,590.65,6.52661]
[1741999659463,0.3108953,591.81,590.65,6.52661]
[1741999661664,0.29441873,591.8,590.65,6.52661]
[1741999661864,0.3108953,591.79,590.65,6.52661]
[1741999662068,0.31089616,591.78,590.65,6.52661]
[1741999662264,0.31089616,591.79,590.65,6.52661]
[1741999662462,0.31089616,591.78,590.65,6.52661]
[1741999662666,0.31089616,591.79,590.65,6.52661]
[1741999662869,0.31089616,591.78,590.65,6.52661]
[1741999663073,0.31089616,591.79,590.65,6.52661]
[1741999663269,0.31089616,591.78,590.65,6.52661]
[1741999663470,0.31089616,591.79,590.65,6.52661]
[1741999663672,0.31089616,591.78,590.65,6.52661]
[1741999664173,0.29441873,591.8,590.65,6.52661]
[1741999664174,0.31089616,591.77,590.65,6.52661]
[1741999664372,0.31089616,591.79,590.65,6.52661]
[1741999664667,0.29442123,591.76,590.65,6.52661]
[1741999664875,0.31089616,591.75,590.65,6.52661]
[1741999667876,0.31084686,591.74,590.65,6.52661]
[1741999668076,0.31084686,591.75,590.65,6.52661]
[1741999668277,0.31084686,591.74,590.65,6.52661]
[1741999668469,0.31084686,591.75,590.65,6.52661]
[1741999668673,0.31084686,591.73,590.65,6.52661]
[1741999668873,0.31084686,591.72,590.65,6.52661]
[1741999669076,0.31084686,591.71,590.65,6.52661]
[1741999669273,0.31084686,591.75,590.65,6.52661]
[1741999669475,0.31084686,591.74,590.65,6.52661]
[1741999669672,0.31084686,591.75,590.65,6.52661]
[1741999670677,0.31084686,591.87,590.65,6.52661]
[1741999670873,0.29442621,591.74,590.65,6.52661]
[1741999671178,0.31084686,591.73,590.65,6.52661]
[1741999671375,0.31084686,591.87,590.65,6.52661]
[1741999671576,0.31084686,591.72,590.65,6.52661]
[1741999671778,0.31084686,591.71,590.65,6.52661]
[1741999671977,0.31084686,591.87,590.65,6.52661]
[1741999672172,0.31084686,591.86,590.65,6.99361]
[1741999672376,0.31084686,591.85,590.65,6.99361]
[1741999672577,0.33790633,591.88,590.65,6.99361]
[1741999672578,0.29441126,591.86,590.65,6.99361]
[1741999672875,0.31084686,591.85,590.65,6.99361]
[1741999673478,0.31085599,591.84,590.65,6.99361]
[1741999673675,0.31085599,591.87,590.65,6.99361]
[1741999673879,0.29441375,591.84,590.65,6.99361]
[1741999674081,0.31085599,591.83,590.65,6.99361]
[1741999676876,0.29441624,591.82,590.65,6.99361]
[1741999677277,0.31085599,591.81,590.65,6.99361]
[1741999679483,0.31085599,591.81,590.65,7.74361]
[1741999679686,0.33790633,591.88,590.65,7.74361]
[1741999679687,0.31085599,591.87,590.65,7.74361]
[1741999679883,0.29442621,591.8,590.65,7.74361]
[1741999680084,0.31085599,591.79,590.65,7.74361]
[1741999680282,0.31085599,591.87,590.65,7.74361]
[1741999680480,0.31085599,591.86,590.65,7.74361]
[1741999680682,0.33790633,591.88,590.65,7.74361]
[1741999680683,0.31085599,591.87,590.65,7.74361]
[1741999682684,0.29442372,591.86,590.65,7.74361]
[1741999682880,0.31085599,591.85,590.65,7.74361]
[1741999683280,0.29442372,591.86,590.65,7.74361]
[1741999683480,0.31089063,591.85,590.65,7.74361]
[1741999685789,0.29441375,591.84,590.65,7.74361]
[1741999686190,0.31089264,591.83,590.65,7.74361]
[1741999688693,0.29443119,591.82,590.65,7.74361]
[1741999689093,0.31089264,591.81,590.65,7.74361]
[1741999689888,0.64883894,591.81,590.65,7.74361]
[1741999690088,0.31089264,591.8,590.65,7.74361]
[1741999690590,0.33795772,591.79,590.65,7.74361]
[1741999690791,0.31089264,591.78,590.65,7.74361]
[1741999690988,0.33796914,591.77,590.65,7.74361]
[1741999691186,0.31089264,591.76,590.65,7.74361]
[1741999691389,0.33798056,591.75,590.65,7.74361]
[1741999691790,0.31089264,591.74,590.65,7.74361]
[1741999691991,0.33799198,591.73,590.65,7.74361]
[1741999692191,0.33799198,591.73,590.65,7.405]
[1741999692387,0.31099312,591.72,590.65,7.405]
[1741999692791,0.31099312,591.71,590.65,7.405]
[1741999692996,0.64900224,591.7,590.65,7.405]
[1741999693194,0.64900795,591.69,590.65,7.405]
[1741999693392,0.64901367,591.68,590.65,7.405]
[1741999693585,0.33802626,591.67,590.65,7.405]
[1741999693790,0.31099312,591.66,590.65,7.405]
[1741999693987,0.31099312,591.65,590.65,7.405]
[1741999694192,0.29447977,591.75,590.65,7.405]
[1741999694193,0.64903652,591.64,590.65,7.405]
[1741999694389,0.31099312,591.63,590.65,7.405]
[1741999694591,0.31099312,591.62,590.65,7.405]
[1741999694791,0.31099312,591.61,590.65,7.405]
[1741999694991,0.31099312,591.6,590.65,7.405]
[1741999695192,0.31099312,591.59,590.65,7.405]
[1741999695390,0.31099312,591.58,590.65,7.405]
[1741999695694,0.64907652,591.57,590.65,7.405]
[1741999695895,0.64908224,591.56,590.65,7.405]
[1741999696095,0.64908795,591.55,590.65,7.405]
[1741999696296,0.64909367,591.54,590.65,7.405]
[1741999696495,0.29454458,591.63,590.65,7.405]
[1741999696496,0.64909938,591.53,590.65,7.405]
[1741999696697,0.29454458,591.63,590.65,7.405]
[1741999696698,0.6491051,591.52,590.65,7.405]
[1741999696996,0.31099312,591.51,590.65,7.405]
[1741999697196,0.31099312,591.5,590.65,7.405]
[1741999697395,0.31099312,591.49,590.65,7.405]
[1741999697595,0.31099312,591.48,590.65,7.405]
[1741999697796,0.31099312,591.47,590.65,7.405]
[1741999697991,0.31099312,591.51,590.65,7.405]
[1741999698192,0.31099312,591.5,590.65,7.405]
[1741999698394,0.31099312,591.49,590.65,7.405]
[1741999698591,0.31099312,591.51,590.65,7.405]
[1741999698795,0.31099312,591.5,590.65,7.405]
[1741999698994,0.31099312,591.51,590.65,7.405]
[1741999699193,0.31099312,591.5,590.65,7.405]
[1741999699397,0.31099312,591.49,590.65,7.405]
[1741999699700,0.31099312,591.51,590.65,7.405]
[1741999699897,0.31099312,591.5,590.65,7.405]
[1741999700098,0.31099312,591.51,590.65,7.405]
[1741999700393,0.31099312,591.5,590.65,7.405]
[1741999700598,0.31099312,591.49,590.65,7.405]
[1741999700800,0.31099312,591.48,590.65,7.405]
[1741999701002,0.33811198,591.52,590.65,7.405]
[1741999701204,0.31118014,591.47,590.65,7.405]
[1741999701396,0.31118014,591.46,590.65,7.405]
[1741999701600,0.31118014,591.45,590.65,7.405]
[1741999701802,0.31118014,591.44,590.65,7.405]
[1741999701998,0.31118014,591.51,590.65,7.405]
[1741999702203,0.31118014,591.5,590.65,7.405]
[1741999702403,0.31118014,591.49,590.65,7.405]
[1741999702697,0.31118014,591.48,590.65,7.405]
[1741999702905,0.33811198,591.52,590.65,7.405]
[1741999703103,0.31119449,591.51,590.65,7.405]
[1741999703806,0.29462313,591.5,590.65,7.405]
[1741999703998,0.31119449,591.49,590.65,7.405]
[1741999704202,0.33813484,591.48,590.65,7.405]
[1741999704403,0.31119449,591.47,590.65,7.405]
[1741999704603,0.33815199,591.45,590.65,7.405]
[1741999704800,0.31119449,591.44,590.65,7.405]
[1741999705005,0.33816343,591.43,590.65,7.405]
[1741999705201,0.31119449,591.42,590.65,7.405]
[1741999705405,0.33817487,591.41,590.65,7.405]
[1741999705704,0.31119449,591.4,590.65,7.405]
[1741999706207,0.3381863,591.39,590.65,7.405]
[1741999706606,0.31120278,591.38,590.65,7.405]
[1741999706805,0.33819774,591.37,590.65,7.405]
[1741999707007,0.31120278,591.36,590.65,7.405]
[1741999707208,0.33820918,591.35,590.65,7.405]
[1741999707407,0.31120278,591.34,590.65,7.405]
[1741999707601,0.33822062,591.33,590.65,7.405]
[1741999707805,0.31120278,591.32,590.65,7.405]
[1741999708006,0.33823206,591.31,590.65,7.405]
[1741999708208,0.31120278,591.3,590.65,7.405]
[1741999708511,0.3382435,591.29,590.65,7.405]
[1741999708704,0.31120278,591.28,590.65,7.405]
[1741999708903,0.33825494,591.27,590.65,7.405]
[1741999709106,0.31120278,591.26,590.65,7.405]
[1741999709309,0.33826638,591.25,590.65,7.405]
[1741999709608,0.31120278,591.24,590.65,7.405]
[1741999709809,0.33827782,591.23,590.65,7.405]
[1741999710009,0.31120278,591.22,590.65,7.405]
[1741999710303,0.33828927,591.21,590.65,7.405]
[1741999710508,0.31120278,591.2,590.65,7.405]
[1741999710703,0.64949777,591.2,590.65,7.405]
[1741999710910,0.31120278,591.19,590.65,7.405]
[1741999712109,0.31121901,591.18,590.65,7.405]
[1741999712310,0.31121901,591.17,590.65,7.405]
[1741999712508,0.31121901,591.16,590.65,7.405]
[1741999712707,0.29467801,591.17,590.65,7.405]
[1741999712906,0.31121901,591.16,590.65,7.405]
[1741999713808,0.29467801,591.17,590.65,7.405]
[1741999714005,0.31121128,591.15,590.65,7.405]
[1741999714206,0.31121128,591.14,590.65,7.405]
[1741999714404,0.31121128,591.13,590.65,7.405]
[1741999714705,0.29467801,591.17,590.65,7.405]
[1741999714706,0.31121128,591.12,590.65,7.405]
[1741999714905,0.31121128,591.16,590.65,7.405]
[1741999715804,0.29466679,591.15,590.65,7.405]
[1741999716209,0.31121128,591.14,590.65,7.405]
[1741999717611,0.29466679,591.15,590.65,7.405]
[1741999717811,0.31120276,591.14,590.65,7.405]
[1741999718813,0.60587204,591.13,590.65,7.405]
[1741999719007,0.31120276,591.12,590.65,7.405]
[1741999719515,0.31120576,591.11,590.65,7.405]
[1741999719714,0.31120576,591.12,590.65,7.405]
[1741999719909,0.31120576,591.11,590.65,7.405]
[1741999720110,0.31120576,591.12,590.65,7.405]
[1741999720310,0.31120546,591.11,590.65,7.405]
[1741999720710,0.31120546,591.1,590.65,7.405]
[1741999720915,0.31120546,591.09,590.65,7.405]
[1741999721114,0.29466928,591.13,590.65,7.405]
[1741999721315,0.3112341,591.12,590.65,7.405]
[1741999721711,0.3112341,591.19,590.65,7.405]
[1741999722011,0.29468924,591.11,590.65,7.405]
[1741999722315,0.3112341,591.1,590.65,7.405]
[1741999722511,0.3112341,591.09,590.65,7.405]
[1741999722712,0.3112341,591.18,590.65,7.405]
[1741999722911,0.3112341,591.17,590.65,7.405]
[1741999723110,0.3112341,591.18,590.65,7.405]